fUST/lending_fUST_20250124
["ID","MTS","AMOUNT","RATE_DAILY","PERIOD"]
[350198041,1737685847736,-163.339311,0.00020447,2]
[350198043,1737685847745,-1761.90902504,0.00020452,2]
[350198045,1737685847755,-151.0,0.00020452,2]
[350198047,1737685847765,-1914.17670613,0.00020456,2]
[350198049,1737685847777,-142.82329387,0.00020456,2]
[350198051,1737685847786,-536.0,0.00020456,2]
[350198053,1737685847796,-2305.0,0.00020456,2]
[350198055,1737685847805,-395.0,0.00020456,2]
[350198058,1737685847814,-1000.0,0.00020537,2]
[350198060,1737685847824,-561.28,0.00020562,3]
[350198061,1737685847833,-500.0,0.00020562,3]
[350198064,1737685847844,-500.0,0.00020562,3]
[350198066,1737685847853,-500.0,0.00020562,3]
[350198068,1737685847862,-689.68,0.00020563,3]
[350198070,1737685847871,-614.88,0.00020563,3]
[350198072,1737685847880,-1761.90902504,0.0002059,2]
[350198074,1737685847890,-561.28,0.00020699,3]
[350198076,1737685847899,-614.91923546,0.00020699,3]
[350198078,1737685847908,-500.0,0.00020699,3]
[350198080,1737685847918,-500.0,0.00020699,3]
[350198082,1737685847928,-689.68,0.000207,3]
[350198084,1737685847938,-614.88,0.000207,3]
[350198086,1737685847948,-420.0,0.00020709,2]
[350198088,1737685847963,-886.3867228,0.00020728,2]
[350198097,1737685848046,-875.52230224,0.00020728,2]
[350198099,1737685848056,-398.83,0.000208,2]
[350198101,1737685848065,-561.28,0.00020836,3]
[350198103,1737685848075,-689.68,0.00020836,3]
[350198105,1737685848086,-500.0,0.00020836,3]
[350198107,1737685848096,-614.88,0.00020836,3]
[350198109,1737685848106,-500.0,0.00020836,3]
[350198111,1737685848116,-1761.90902504,0.00020866,2]
[350198113,1737685848126,-500.0,0.00020897,3]
[350198115,1737685848135,-500.0,0.00020897,3]
[350198117,1737685848145,-504.81617964,0.00020898,3]
[350198119,1737685848154,-500.47440231,0.00020898,3]
[350198121,1737685848164,-409.63575887,0.00020898,3]
[350198123,1737685848174,-500.0,0.00020898,3]
[350198125,1737685848184,-151.0,0.00020898,2]
[350198127,1737685848193,-151.0,0.00020898,2]
[350198129,1737685848205,-151.0,0.00020898,2]
[350198131,1737685848214,-151.0,0.00020898,2]
[350198133,1737685848224,-151.0,0.00020898,2]
[350198135,1737685848233,-151.0,0.00020898,2]
[350198137,1737685848243,-151.0,0.00020898,2]
[350198139,1737685848253,-264.97073,0.00020898,2]
[350198141,1737685848263,-264.97073,0.00020898,2]
[350198143,1737685848272,-482.543297,0.00020898,2]
[350198145,1737685848282,-482.543297,0.00020898,2]
[350198147,1737685848292,-164.053756,0.00020899,2]
[350198149,1737685848301,-151.0,0.00020899,2]
[350198151,1737685848310,-151.0,0.00020899,2]
[350198153,1737685848320,-151.0,0.00020899,2]
[350198155,1737685848329,-176.186979,0.00020899,2]
[350198157,1737685848339,-176.186979,0.00020899,2]
[350198159,1737685848348,-151.0,0.00020972,2]
[350198160,1737685848358,-151.0,0.00020972,2]
[350198163,1737685848368,-151.0,0.00020972,2]
[350198165,1737685848378,-561.28,0.00020973,3]
[350198167,1737685848387,-689.68,0.00020973,3]
[350198169,1737685848397,-500.0,0.00020973,3]
[350198171,1737685848407,-614.88,0.00020973,3]
[350198173,1737685848416,-159.97328873,0.00020973,3]
[350198175,1737685848426,-701.02,0.00021,2]
[350198177,1737685848435,-1761.90902504,0.00021003,2]
[350198179,1737685848445,-1000.1458176,0.00021022,2]
[350198180,1737685848457,-1500.0,0.00021022,2]
[350198182,1737685848466,-151.0,0.00021034,2]
[350198185,1737685848476,-561.28,0.0002111,3]
[350198187,1737685848486,-689.68,0.0002111,3]
[350198189,1737685848496,-500.0,0.0002111,3]
[350198191,1737685848506,-614.88,0.0002111,3]
[350198193,1737685848516,-1761.90902504,0.00021141,2]
[350198195,1737685848526,-161.05857705,0.00021171,2]
[350198197,1737685848535,-161.732647,0.00021172,2]
[350198199,1737685848545,-151.0,0.00021172,2]
[350198201,1737685848559,-176.186979,0.00021172,2]
[350198203,1737685848569,-176.186979,0.00021172,2]
[350198205,1737685848579,-2023.51218647,0.000212,10]
[350198207,1737685848589,-561.28,0.00021247,3]
[350198209,1737685848599,-689.68,0.00021247,3]
[350198211,1737685848608,-500.0,0.00021247,3]
[350198213,1737685848618,-614.88,0.00021247,3]
[350198215,1737685848629,-1761.90902504,0.00021279,2]
[350198217,1737685848639,-151.0,0.00021309,2]
[350198219,1737685848648,-151.0,0.00021309,2]
[350198221,1737685848659,-151.0,0.00021309,2]
[350198223,1737685848668,-264.97073,0.00021309,2]
[350198225,1737685848678,-264.97073,0.00021309,2]
[350198227,1737685848688,-224.1873306,0.00021309,2]
[350198229,1737685848700,-258.3559664,0.00021309,2]
[350198231,1737685848711,-482.543297,0.00021309,2]
[350198233,1737685848720,-561.28,0.00021384,3]
[350198235,1737685848730,-689.68,0.00021384,3]
[350198237,1737685848740,-500.0,0.00021384,3]
[350198239,1737685848750,-614.88,0.00021384,3]
[350198241,1737685848760,-500.0,0.00021416,3]
[350198243,1737685848769,-151.0,0.00021417,2]
[350198245,1737685848779,-151.0,0.00021417,2]
[350198247,1737685848789,-151.0,0.00021417,2]
[350198249,1737685848798,-151.0,0.00021417,2]
[350198251,1737685848808,-1761.90902504,0.00021417,2]
[350198253,1737685848817,-151.0,0.00021521,2]
[350198255,1737685848827,-561.28,0.00021521,3]
[350198257,1737685848836,-689.68,0.00021521,3]
[350198259,1737685848846,-500.0,0.00021521,3]
[350198261,1737685848856,-614.88,0.00021521,3]
[350198263,1737685848865,-590.91364981,0.00021539,2]
[350198265,1737685848875,-162.0,0.0002154,2]
[350198267,1737685848884,-162.0,0.0002154,2]
[350198269,1737685848894,-162.0,0.00021552,2]
[350198271,1737685848904,-162.0,0.00021552,2]
[350198273,1737685848914,-162.0,0.00021552,2]
[350198275,1737685848923,-162.0,0.00021552,2]
[350198277,1737685848933,-162.0,0.00021552,2]
[350198279,1737685848943,-162.0,0.00021552,2]
[350198281,1737685848955,-1761.90902504,0.00021555,2]
[350198283,1737685848964,-5292.0,0.000216,4]
[350198285,1737685848974,-561.28,0.00021658,3]
[350198287,1737685848983,-689.68,0.00021658,3]
[350198289,1737685848993,-500.0,0.00021658,3]
[350198290,1737685849002,-614.88,0.00021658,3]
[350198292,1737685849011,-1761.90902504,0.00021693,3]
[350198294,1737685849021,-164.053756,0.00021751,2]
[350198296,1737685849030,-151.0,0.00021751,2]
[350198298,1737685849040,-190.079091,0.00021751,2]
[350198300,1737685849050,-561.28,0.00021795,3]
[350198302,1737685849059,-689.68,0.00021795,3]
[350198304,1737685849069,-500.0,0.00021795,3]
[350198306,1737685849079,-614.88,0.00021795,3]
[350198308,1737685849089,-188.75,0.000218,2]
[350198310,1737685849098,-155.397939,0.000218,5]
[350198312,1737685849107,-151.0,0.00021831,2]
[350198314,1737685849118,-151.0,0.00021831,2]
[350198316,1737685849128,-151.0,0.00021831,2]
[350198318,1737685849139,-151.0,0.00021831,2]
[350198326,1737685849233,-151.0,0.00021831,2]
[350198327,1737685849259,-151.0,0.00021831,2]
[350198328,1737685849270,-151.0,0.00021831,2]
[350198329,1737685849279,-264.97073,0.00021831,2]
[350198330,1737685849290,-264.97073,0.00021831,2]
[350198331,1737685849300,-482.543297,0.00021831,2]
[350198332,1737685849310,-482.543297,0.00021831,2]
[350198333,1737685849319,-1761.90902504,0.00021831,3]
[350198334,1737685849328,-151.0,0.00021894,2]
[350198335,1737685849338,-500.0,0.00021894,3]
[350198336,1737685849348,-151.0,0.00021895,2]
[350198337,1737685849358,-151.0,0.00021895,2]
[350198338,1737685849368,-151.0,0.00021895,2]
[350198340,1737685849378,-151.0,0.00021896,2]
[350198342,1737685849388,-353.04374654,0.00021897,3]
[350198344,1737685849397,-46529.32884609,0.00021898,3]
[350199949,1737685993087,163.287233,0.00013973,2]
[350199951,1737686078169,706.8,0.00024,120]
[350199952,1737686195605,657.27322934,0.00024,120]
[350199956,1737686891109,163.287233,0.00013973,2]
[350200058,1737687037000,-150.24525927,0.00016,2]
[350200061,1737687037012,-1099.23822671,0.0001617,2]
[350200066,1737687037053,-1377.10327013,0.0001617,2]
[350200068,1737687037062,-2476.34149681,0.0001625,2]
[350200070,1737687037071,-300.0,0.00016269,2]
[350200072,1737687037080,-24900.0,0.0001627,2]
[350200074,1737687037089,-2476.34149681,0.00016331,2]
[350200076,1737687037098,-2476.34149681,0.00016411,2]
[350200078,1737687037107,-2476.34149681,0.00016492,2]
[350200080,1737687037117,-2476.34149681,0.00016572,2]
[350200082,1737687037126,-200.449687,0.00016672,2]
[350200084,1737687037135,-580.99611116,0.00017318,2]
[350200086,1737687037144,-420.0,0.00017782,2]
[350200088,1737687037155,-189.282432,0.00017808,2]
[350200090,1737687037163,-162.66,0.000186,2]
[350200093,1737687037172,-176.97980051,0.00019078,2]
[350200096,1737687037181,-160.31801965,0.00019078,2]
[350200098,1737687037191,-152.0,0.00019157,2]
[350200101,1737687037199,-500.0,0.00019177,2]
[350200104,1737687037208,-500.0,0.00019177,2]
[350200107,1737687037218,-500.0,0.00019177,2]
[350200109,1737687037228,-500.0,0.00019177,2]
[350200111,1737687037237,-300.03882822,0.00019177,2]
[350200113,1737687037247,-500.0,0.00019177,2]
[350200115,1737687037256,-500.0,0.00019177,2]
[350200117,1737687037266,-500.0,0.00019177,2]
[350200120,1737687037275,-500.0,0.00019177,2]
[350200123,1737687037284,-500.0,0.00019177,2]
[350200125,1737687037293,-500.0,0.00019177,2]
[350200127,1737687037303,-500.0,0.00019177,2]
[350200129,1737687037312,-500.0,0.00019177,2]
[350200131,1737687037322,-500.0,0.00019177,2]
[350200134,1737687037331,-549.34946404,0.00019177,2]
[350200135,1737687037340,-500.0,0.00019177,2]
[350200136,1737687037349,-500.0,0.00019177,2]
[350200137,1737687037358,-500.0,0.00019177,2]
[350200138,1737687037368,-500.0,0.00019177,2]
[350200139,1737687037377,-500.0,0.00019177,2]
[350200140,1737687037386,-500.0,0.00019177,2]
[350200141,1737687037395,-500.0,0.00019177,2]
[350200142,1737687037405,-500.0,0.00019177,2]
[350200143,1737687037415,-500.0,0.00019178,2]
[350200144,1737687037424,-502.98185298,0.00019178,2]
[350200145,1737687037434,-500.0,0.00019178,2]
[350200147,1737687037443,-299.54820353,0.00019178,2]
[350200149,1737687037453,-500.0,0.00019178,2]
[350200151,1737687037463,-500.0,0.00019178,2]
[350200153,1737687037472,-500.0,0.00019178,2]
[350200155,1737687037481,-500.0,0.00019178,2]
[350200157,1737687037491,-531.25866158,0.00019178,2]
[350200159,1737687037500,-500.0,0.00019178,2]
[350200161,1737687037510,-500.0,0.00019178,2]
[350200163,1737687037519,-500.0,0.00019178,2]
[350200165,1737687037527,-542.57,0.00019178,2]
[350200166,1737687037536,-501.56137761,0.00019178,2]
[350200167,1737687037546,-500.0,0.00019178,2]
[350200168,1737687037555,-500.0,0.00019178,2]
[350200170,1737687037564,-504.04305189,0.00019178,2]
[350200172,1737687037573,-500.0,0.00019178,2]
[350200175,1737687037583,-503.03685126,0.00019178,2]
[350200176,1737687037592,-500.0,0.00019178,2]
[350200179,1737687037602,-500.0,0.00019178,2]
[350200181,1737687037611,-500.0,0.00019178,2]
[350200183,1737687037620,-507.97089696,0.00019178,2]
[350200185,1737687037630,-503.46899069,0.00019178,2]
[350200187,1737687037639,-500.0,0.00019178,2]
[350200189,1737687037648,-500.0,0.00019178,2]
[350200191,1737687037659,-500.0,0.00019178,2]
[350200193,1737687037668,-500.0,0.00019178,2]
[350200195,1737687037677,-500.0,0.00019178,2]
[350200197,1737687037686,-500.0,0.00019178,2]
[350200199,1737687037695,-500.0,0.00019178,2]
[350200201,1737687037704,-500.0,0.00019178,2]
[350200203,1737687037713,-500.0,0.00019178,2]
[350200205,1737687037722,-500.0,0.00019178,2]
[350200207,1737687037735,-500.0,0.00019178,2]
[350200209,1737687037745,-500.0,0.00019178,2]
[350200211,1737687037755,-500.0,0.00019178,2]
[350200213,1737687037765,-500.0,0.00019178,2]
[350200215,1737687037774,-531.19992094,0.00019178,2]
[350200218,1737687037787,-500.0,0.00019178,2]
[350200220,1737687037797,-500.0,0.00019178,2]
[350200222,1737687037806,-500.0,0.00019178,2]
[350200224,1737687037816,-500.0,0.00019178,2]
[350200226,1737687037825,-500.0,0.00019178,2]
[350200228,1737687037834,-500.0,0.00019178,2]
[350200230,1737687037844,-500.0,0.00019178,2]
[350200232,1737687037853,-500.0,0.00019178,2]
[350200234,1737687037863,-484.30407497,0.00019178,2]
[350200236,1737687037872,-500.0,0.00019178,2]
[350200238,1737687037881,-500.0,0.00019178,2]
[350200240,1737687037890,-502.38589165,0.00019178,2]
[350200242,1737687037900,-500.0,0.00019178,2]
[350200244,1737687037912,-500.0,0.00019178,2]
[350200246,1737687037922,-500.0,0.00019178,2]
[350200248,1737687037934,-500.0,0.00019178,2]
[350200250,1737687037943,-500.0,0.00019178,2]
[350200252,1737687037953,-500.0,0.00019178,2]
[350200254,1737687037962,-500.0,0.00019178,2]
[350200256,1737687037973,-503.34869977,0.00019178,2]
[350200258,1737687037982,-500.0,0.00019178,2]
[350200260,1737687037992,-500.0,0.00019178,2]
[350200262,1737687038002,-500.0,0.00019178,2]
[350200265,1737687038013,-500.0,0.00019178,2]
[350200267,1737687038023,-500.0,0.00019178,2]
[350200269,1737687038032,-500.0,0.00019178,2]
[350200271,1737687038042,-500.0,0.00019178,2]
[350200273,1737687038051,-514.89575301,0.00019178,2]
[350200275,1737687038060,-500.0,0.00019178,2]
[350200277,1737687038070,-500.0,0.00019178,2]
[350200279,1737687038079,-500.0,0.00019178,2]
[350200281,1737687038088,-500.0,0.00019178,2]
[350200283,1737687038097,-500.0,0.00019178,2]
[350200285,1737687038107,-500.0,0.00019178,2]
[350200287,1737687038116,-500.0,0.00019178,2]
[350200289,1737687038126,-500.0,0.00019178,2]
[350200291,1737687038135,-500.0,0.00019178,2]
[350200293,1737687038144,-500.0,0.00019178,2]
[350200306,1737687038254,-500.0,0.00019178,2]
[350200307,1737687038264,-505.72911429,0.00019178,2]
[350200308,1737687038273,-504.25544191,0.00019178,2]
[350200309,1737687038283,-47.71230314,0.00019178,2]
[350200310,1737687038298,-370.10003,0.00019178,2]
[350200311,1737687038314,-82.18766686,0.00019178,2]
[350200312,1737687038324,-411.23629722,0.00019178,2]
[350200313,1737687038334,-500.0,0.00019178,2]
[350200314,1737687038344,-500.0,0.00019178,2]
[350200315,1737687038353,-500.0,0.00019178,2]
[350200316,1737687038362,-504.12828533,0.00019178,2]
[350200317,1737687038372,-500.0,0.00019178,2]
[350200318,1737687038381,-503.94203339,0.00019178,2]
[350200319,1737687038390,-519.53791986,0.00019178,2]
[350200320,1737687038400,-500.0,0.00019178,2]
[350200321,1737687038411,-500.0,0.00019178,2]
[350200323,1737687038420,-352.93266573,0.00019178,2]
[350200325,1737687038430,-500.0,0.00019178,2]
[350200327,1737687038439,-500.0,0.00019178,2]
[350200329,1737687038448,-500.0,0.00019178,2]
[350200331,1737687038458,-505.29229155,0.00019178,2]
[350200333,1737687038467,-500.0,0.00019178,2]
[350200335,1737687038478,-84.53386676,0.00019178,2]
[350200338,1737687038495,-415.46613324,0.00019178,2]
[350200340,1737687038504,-500.0,0.00019178,2]
[350200342,1737687038514,-500.0,0.00019178,2]
[350200344,1737687038523,-500.0,0.00019178,2]
[350200346,1737687038532,-415.70267254,0.00019178,2]
[350200353,1737687038590,-90.90833323,0.00019178,2]
[350200355,1737687038600,-500.0,0.00019178,2]
[350200357,1737687038609,-500.0,0.00019178,2]
[350200359,1737687038619,-221.65929187,0.00019178,2]
[350200362,1737687038634,-278.34070813,0.00019178,2]
[350200364,1737687038643,-500.0,0.00019178,2]
[350200366,1737687038652,-503.98515731,0.00019178,2]
[350200368,1737687038662,-500.0,0.00019178,2]
[350200370,1737687038671,-504.63334161,0.00019178,2]
[350200372,1737687038681,-330.13391175,0.00019178,2]
[350200374,1737687038690,-500.0,0.00019178,2]
[350200376,1737687038699,-500.0,0.00019178,2]
[350200378,1737687038709,-500.0,0.00019178,2]
[350200380,1737687038718,-500.0,0.00019178,2]
[350200382,1737687038727,-500.0,0.00019178,2]
[350200384,1737687038736,-258.45136981,0.00019178,2]
[350200386,1737687038745,-500.0,0.00019178,2]
[350200388,1737687038754,-500.0,0.00019178,2]
[350200390,1737687038764,-500.0,0.00019178,2]
[350200392,1737687038773,-500.0,0.00019178,2]
[350200394,1737687038782,-500.0,0.00019178,2]
[350200396,1737687038791,-503.74316356,0.00019178,2]
[350200398,1737687038801,-506.17981731,0.00019178,2]
[350200400,1737687038811,-500.0,0.00019178,2]
[350200402,1737687038820,-500.0,0.00019178,2]
[350200404,1737687038829,-500.0,0.00019178,2]
[350200406,1737687038839,-500.0,0.00019178,2]
[350200408,1737687038848,-2755.07,0.00019178,2]
[350200409,1737687038857,-504.03976905,0.00019178,2]
[350200411,1737687038866,-507.8373729,0.00019178,2]
[350200413,1737687038876,-512.10710339,0.00019178,2]
[350200415,1737687038885,-500.0,0.00019178,2]
[350200417,1737687038895,-200.0,0.00019178,2]
[350200419,1737687038905,-500.0,0.00019178,2]
[350200421,1737687038914,-2566.35,0.00019178,2]
[350200423,1737687038925,-500.0,0.00019178,2]
[350200425,1737687038937,-500.0,0.00019178,2]
[350200427,1737687038947,-500.0,0.00019178,2]
[350200429,1737687038956,-500.0,0.00019178,2]
[350200431,1737687038966,-500.0,0.00019178,2]
[350200433,1737687038975,-502.43652987,0.00019178,2]
[350200435,1737687038985,-500.0,0.00019178,2]
[350200437,1737687038994,-500.0,0.00019178,2]
[350200439,1737687039004,-500.0,0.00019178,2]
[350200441,1737687039014,-501.96286601,0.00019178,2]
[350200443,1737687039023,-500.0,0.00019178,2]
[350200445,1737687039032,-500.0,0.00019178,2]
[350200447,1737687039041,-500.0,0.00019178,2]
[350200449,1737687039050,-500.0,0.00019178,2]
[350200451,1737687039059,-500.0,0.00019178,2]
[350200453,1737687039068,-500.0,0.00019178,2]
[350200455,1737687039076,-500.0,0.00019178,2]
[350200457,1737687039086,-500.0,0.00019178,2]
[350200459,1737687039095,-643.28956327,0.00019178,2]
[350200461,1737687039104,-484.40652801,0.00019178,2]
[350200463,1737687039113,-1164.35,0.00019178,2]
[350200465,1737687039123,-502.20580713,0.00019178,2]
[350200467,1737687039131,-500.0,0.00019178,2]
[350200469,1737687039140,-2794.98,0.00019178,2]
[350200471,1737687039149,-841.46,0.00019178,2]
[350200473,1737687039162,-503.77040471,0.00019178,2]
[350200475,1737687039171,-500.0,0.00019178,2]
[350200477,1737687039180,-508.7351071,0.00019178,2]
[350200480,1737687039192,-500.0,0.00019178,2]
[350200482,1737687039205,-500.0,0.00019178,2]
[350200485,1737687039219,-502.18568725,0.00019178,2]
[350200487,1737687039232,-500.0,0.00019178,2]
[350200489,1737687039244,-500.0,0.00019178,2]
[350200492,1737687039256,-500.0,0.00019178,2]
[350200494,1737687039268,-500.0,0.00019178,2]
[350200496,1737687039280,-373.80093507,0.00019178,2]
[350200499,1737687039293,-500.0,0.00019178,2]
[350200501,1737687039305,-500.0,0.00019178,2]
[350200503,1737687039319,-888.16,0.00019178,2]
[350200506,1737687039331,-500.0,0.00019178,2]
[350200508,1737687039344,-500.0,0.00019178,2]
[350200511,1737687039359,-500.0,0.00019178,2]
[350200513,1737687039371,-500.0,0.00019178,2]
[350200515,1737687039383,-504.14904834,0.00019178,2]
[350200518,1737687039395,-500.0,0.00019178,2]
[350200520,1737687039408,-500.0,0.00019178,2]
[350200522,1737687039419,-500.0,0.00019178,2]
[350200525,1737687039432,-500.0,0.00019178,2]
[350200527,1737687039445,-500.0,0.00019178,2]
[350200529,1737687039457,-500.0,0.00019178,2]
[350200531,1737687039469,-500.0,0.00019178,2]
[350200534,1737687039480,-500.0,0.00019178,2]
[350200537,1737687039492,-500.0,0.00019178,2]
[350200539,1737687039504,-506.80771514,0.00019178,2]
[350200541,1737687039516,-513.97679273,0.00019178,2]
[350200544,1737687039530,-500.0,0.00019178,2]
[350200546,1737687039543,-500.0,0.00019178,2]
[350200549,1737687039555,-500.0,0.00019178,2]
[350200551,1737687039568,-500.0,0.00019178,2]
[350200553,1737687039581,-500.0,0.00019178,2]
[350200556,1737687039594,-500.0,0.00019178,2]
[350200558,1737687039607,-500.0,0.00019178,2]
[350200560,1737687039618,-500.0,0.00019178,2]
[350200562,1737687039629,-500.0,0.00019178,2]
[350200565,1737687039638,-510.08494788,0.00019178,2]
[350200567,1737687039649,-500.0,0.00019178,2]
[350200569,1737687039664,-500.0,0.00019178,2]
[350200572,1737687039677,-500.0,0.00019178,2]
[350200574,1737687039691,-500.0,0.00019178,2]
[350200576,1737687039701,-512.06177712,0.00019178,2]
[350200578,1737687039712,-500.0,0.00019178,2]
[350200581,1737687039723,-678.28,0.00019178,2]
[350200583,1737687039735,-500.0,0.00019178,2]
[350200585,1737687039747,-500.0,0.00019178,2]
[350200588,1737687039759,-12181.58,0.00019178,2]
[350200590,1737687039770,-500.0,0.00019178,2]
[350200592,1737687039781,-500.0,0.00019178,2]
[350200594,1737687039795,-500.0,0.00019178,2]
[350200597,1737687039822,-581.2,0.00019178,2]
[350200599,1737687039834,-500.0,0.00019178,2]
[350200601,1737687039845,-500.0,0.00019178,2]
[350200603,1737687039857,-500.0,0.00019178,2]
[350200606,1737687039868,-500.0,0.00019178,2]
[350200608,1737687039878,-1061.46,0.00019178,2]
[350200610,1737687039889,-500.0,0.00019178,2]
[350200612,1737687039901,-500.0,0.00019178,2]
[350200614,1737687039913,-248.98414771,0.00019178,2]
[350200617,1737687039927,-500.0,0.00019178,2]
[350200619,1737687039938,-500.0,0.00019178,2]
[350200621,1737687039949,-500.0,0.00019178,2]
[350200623,1737687039960,-2173.92,0.00019178,2]
[350200625,1737687039972,-500.0,0.00019178,2]
[350200627,1737687039983,-1202.1,0.00019178,2]
[350200630,1737687039994,-1819.3,0.00019178,2]
[350200632,1737687040006,-500.0,0.00019178,2]
[350200634,1737687040019,-500.0,0.00019178,2]
[350200636,1737687040030,-500.0,0.00019178,2]
[350200639,1737687040043,-467.80254981,0.00019178,2]
[350200641,1737687040054,-500.0,0.00019178,2]
[350200643,1737687040065,-500.0,0.00019178,2]
[350200645,1737687040076,-500.0,0.00019178,2]
[350200647,1737687040087,-522.76,0.00019178,2]
[350200650,1737687040099,-500.0,0.00019178,2]
[350200653,1737687040110,-503.95085173,0.00019178,2]
[350200655,1737687040120,-500.0,0.00019178,2]
[350200657,1737687040131,-500.0,0.00019178,2]
[350200659,1737687040143,-398.62262513,0.00019178,2]
[350200662,1737687040153,-500.0,0.00019178,2]
[350200664,1737687040164,-500.0,0.00019178,2]
[350200666,1737687040175,-2877.86,0.00019178,2]
[350200668,1737687040187,-536.13,0.00019178,2]
[350200671,1737687040198,-502.22,0.00019178,2]
[350200673,1737687040209,-524.88618729,0.00019178,2]
[350200675,1737687040220,-500.0,0.00019178,2]
[350200677,1737687040231,-500.0,0.00019178,2]
[350200679,1737687040241,-500.0,0.00019178,2]
[350200682,1737687040252,-500.0,0.00019178,2]
[350200684,1737687040263,-1032.07,0.00019178,2]
[350200686,1737687040274,-551.71,0.00019178,2]
[350200688,1737687040285,-500.0,0.00019178,2]
[350200690,1737687040296,-500.0,0.00019178,2]
[350200693,1737687040307,-500.0,0.00019178,2]
[350200695,1737687040318,-500.0,0.00019178,2]
[350200697,1737687040329,-500.0,0.00019178,2]
[350200699,1737687040340,-606.17,0.00019178,2]
[350200701,1737687040352,-500.0,0.00019178,2]
[350200716,1737687040478,-500.0,0.00019178,2]
[350200719,1737687040491,-500.0,0.00019178,2]
[350200721,1737687040501,-500.0,0.00019178,2]
[350200723,1737687040511,-812.24,0.00019178,2]
[350200725,1737687040521,-500.0,0.00019178,2]
[350200727,1737687040531,-812.24,0.00019178,2]
[350200729,1737687040540,-812.24,0.00019178,2]
[350200731,1737687040549,-812.24,0.00019178,2]
[350200733,1737687040559,-812.24,0.00019178,2]
[350200735,1737687040568,-812.24,0.00019178,2]
[350200737,1737687040576,-812.24,0.00019178,2]
[350200739,1737687040586,-812.24,0.00019178,2]
[350200741,1737687040595,-500.0,0.00019178,2]
[350200743,1737687040604,-812.24,0.00019178,2]
[350200745,1737687040614,-500.0,0.00019178,2]
[350200747,1737687040623,-500.0,0.00019178,2]
[350200749,1737687040632,-305.53560276,0.00019178,2]
[350200751,1737687040641,-500.0,0.00019178,2]
[350200753,1737687040651,-500.0,0.00019178,2]
[350200755,1737687040662,-500.0,0.00019178,2]
[350200757,1737687040672,-500.0,0.00019178,2]
[350200759,1737687040681,-500.0,0.00019178,2]
[350200761,1737687040690,-500.0,0.00019178,2]
[350200763,1737687040699,-500.0,0.00019178,2]
[350200765,1737687040708,-500.0,0.00019178,2]
[350200767,1737687040717,-1072.27,0.00019178,2]
[350200769,1737687040726,-500.0,0.00019178,2]
[350200771,1737687040735,-176.9066575,0.00019178,2]
[350200772,1737687040745,-176.9798005,0.00019215,2]
[350200774,1737687040754,-264.04084044,0.00019314,2]
[350200776,1737687040763,-812.24,0.00019314,3]
[350200779,1737687040773,-812.24,0.00019314,3]
[350200781,1737687040782,-812.24,0.00019314,3]
[350200782,1737687040791,-812.24,0.00019314,3]
[350200784,1737687040801,-217.99,0.00019315,3]
[350200786,1737687040809,-500.0,0.00019315,3]
[350200788,1737687040818,-538.75672649,0.00019315,3]